fUSD/lending_fUSD_20260405
["ID","MTS","AMOUNT","RATE_DAILY","PERIOD"]
[419764770,1775363434455,-186.94524211,0.00015008,2]
[419764771,1775363434465,-1000.0,0.00015009,2]
[419764772,1775363434474,-5819.1897525,0.00015009,2]
[419764773,1775363435325,-42168.07361055,0.00015009,2]
[419764774,1775363435338,-22239.53816437,0.00015009,2]
[419764775,1775363435365,-500.0,0.00014914,2]
[419764776,1775363435375,-500.0,0.00014914,2]
[419764777,1775363435384,-3135.07231949,0.00015009,2]
[419764973,1775363443542,-666.28902609,0.00014808,2]
[419764974,1775363443554,-500.0,0.00014914,2]
[419764975,1775363443564,-500.0,0.00014914,2]
[419764976,1775363443575,-313.62766045,0.00014914,2]
[419764977,1775363443588,-186.37233955,0.00014914,2]
[419764978,1775363443599,-500.0,0.00014914,2]
[419764979,1775363443610,-500.0,0.00014914,2]
[419764980,1775363443620,-500.0,0.00014914,2]
[419764981,1775363443631,-500.0,0.00014914,2]
[419764982,1775363443642,-500.0,0.00014914,2]
[419764983,1775363443652,-236.7105311,0.00014914,2]
[419764984,1775363443663,-500.0,0.00014914,2]
[419764985,1775363443673,-500.0,0.00014914,2]
[419764986,1775363443683,-10.73182975,0.00014914,2]
[419764992,1775363443890,-489.26817025,0.00014914,2]
[419764994,1775363443901,-500.0,0.00014914,2]
[419764996,1775363443912,-500.0,0.00014914,2]
[419764997,1775363443922,-500.0,0.00014914,2]
[419764998,1775363443933,-500.0,0.00014914,2]
[419764999,1775363443943,-500.0,0.00014914,2]
[419765000,1775363443954,-500.0,0.00014914,2]
[419765001,1775363443964,-500.0,0.00014914,2]
[419765002,1775363443974,-500.0,0.00014914,2]
[419765003,1775363443984,-500.0,0.00014914,2]
[419765004,1775363443994,-500.0,0.00014914,2]
[419765005,1775363444006,-199.44724017,0.00014999,2]
[419765006,1775363444016,-291722.8247437,0.00015009,2]
[419765011,1775363446774,-155182.22208217,0.00015009,2]
[419765012,1775363448852,-19835.755009,0.00015009,2]
[419765013,1775363448864,-2769.80224774,0.00015009,2]
[419765014,1775363448879,-388284.56509555,0.00015009,2]
[419765016,1775363449517,-5982.56390244,0.00015009,2]
[419765035,1775364632944,-340.14858335,0.00011507,2]
[419765036,1775364632971,-475.0,0.00011507,2]
[419765037,1775364632982,-2285.86141665,0.00011507,2]
[419765038,1775364632992,-168.77647524,0.00011705,2]
[419765039,1775364633001,-300.0,0.00011805,2]
[419765040,1775364633010,-252.53960914,0.00011805,2]
[419765041,1775364633018,-300.0,0.00012656,2]
[419765042,1775364633027,-481.0,0.00012657,2]
[419765043,1775364633036,-1200.0,0.00012657,2]
[419765044,1775364633046,-600.0,0.00012658,2]
[419765045,1775364633055,-300.0,0.00012658,2]
[419765046,1775364633065,-250.0,0.00012658,2]
[419765047,1775364633074,-250.0,0.00012658,2]
[419765048,1775364633083,-160.1,0.00013,2]
[419765049,1775364633093,-250.0,0.00013,2]
[419765050,1775364633102,-501.0,0.00013111,2]
[419765051,1775364633111,-306.72,0.00013125,2]
[419765052,1775364633120,-150.0,0.0001317,2]
[419765053,1775364633130,-41679.45,0.00013171,2]
[419765054,1775364633139,-168.77647523,0.000133,2]
[419765055,1775364633148,-200.0,0.00013317,2]
[419765056,1775364633157,-151.0,0.00013317,2]
[419765057,1775364633166,-151.0,0.00013317,2]
[419765058,1775364633175,-151.0,0.00013317,2]
[419765059,1775364633184,-151.0,0.00013317,2]
[419765060,1775364633193,-151.0,0.00013317,2]
[419765061,1775364633202,-151.0,0.00013317,2]
[419765062,1775364633211,-151.0,0.00013317,2]
[419765063,1775364633220,-151.0,0.00013317,2]
[419765064,1775364633229,-151.0,0.00013317,2]
[419765065,1775364633238,-151.0,0.00013317,2]
[419765066,1775364633247,-173.04441609,0.00013317,2]
[419765067,1775364633256,-23155.5714,0.00013325,2]
[419765068,1775364633266,-150.0,0.00013475,2]
[419765069,1775364633275,-200.0,0.00013475,2]
[419765070,1775364633284,-1852.42,0.00013475,2]
[419765071,1775364633293,-500.0,0.00013517,2]
[419765072,1775364633303,-150.0,0.00013699,2]
[419765073,1775364633312,-150.0,0.00013699,2]
[419765074,1775364633321,-150.0,0.00013699,2]
[419765075,1775364633330,-150.0,0.00013699,2]
[419765076,1775364633339,-717.06,0.00013699,2]
[419765077,1775364633348,-157.85,0.00013699,2]
[419765078,1775364633358,-9302.92,0.00013699,2]
[419765079,1775364633367,-195.93,0.00013699,2]
[419765080,1775364633376,-1000.0,0.00013699,2]
[419765081,1775364633385,-1001.03211684,0.00013699,15]
[419765082,1775364633395,-474.26,0.00013783,2]
[419765083,1775364633404,-420.0,0.00013884,2]
[419765084,1775364633413,-200.0,0.000139,2]
[419765085,1775364633422,-200.0604195,0.000139,3]
[419765086,1775364633432,-500.0,0.00013906,2]
[419765087,1775364633441,-500.0,0.00013918,2]
[419765088,1775364633451,-1680.0,0.00013922,2]
[419765089,1775364633460,-474.26,0.00013965,2]
[419765090,1775364633470,-150.0,0.00013973,2]
[419765091,1775364633480,-150.0,0.00013973,2]
[419765092,1775364633490,-150.0,0.00013973,2]
[419765093,1775364633499,-4372.81,0.00013993,2]
[419765094,1775364633508,-11422.25541393,0.00014006,2]
[419765095,1775364633518,-1600.0,0.00014074,2]
[419765096,1775364633527,-474.26,0.00014154,2]
[419765097,1775364633536,-150.0,0.00014247,2]
[419765098,1775364633547,-150.0,0.00014247,2]
[419765099,1775364633556,-255.0,0.00014277,2]
[419765100,1775364633566,-1034.54,0.000143,2]
[419765101,1775364633576,-150.0,0.000144,2]
[419765102,1775364633585,-150.0,0.000144,2]
[419765103,1775364633594,-150.0,0.000144,2]
[419765104,1775364633603,-150.00000001,0.000144,2]
[419765105,1775364633612,-150.0,0.000144,2]
[419765106,1775364633621,-150.0,0.000144,2]
[419765107,1775364633631,-150.0,0.000144,2]
[419765108,1775364633640,-150.0,0.000144,2]
[419765109,1775364633649,-150.0,0.000144,2]
[419765110,1775364633658,-150.0,0.000144,2]
[419765111,1775364633668,-150.0,0.000144,2]
[419765112,1775364633678,-150.0,0.000144,2]
[419765113,1775364633688,-150.0,0.000144,2]
[419765114,1775364633697,-150.0,0.000144,2]
[419765115,1775364633707,-150.05716299,0.000144,2]
[419765116,1775364633716,-3594.03596967,0.00014409,2]
[419765117,1775364633726,-150.0,0.00014462,2]
[419765118,1775364633735,-150.0,0.0001447,2]
[419765119,1775364633744,-150.0,0.00014489,2]
[419765120,1775364633754,-2500.0,0.00014499,2]
[419765121,1775364633763,-4627.65946913,0.00014499,2]
[419765122,1775364633772,-150.0,0.000145,2]
[419765123,1775364634093,-150.0,0.000145,2]
[419765124,1775364634106,-10520.67202308,0.000145,2]
[419765125,1775364634116,-4150.8528,0.00014509,2]
[419765126,1775364634126,-30018.7156,0.00014509,2]
[419765127,1775364634136,-5000.0,0.00014509,2]
[419765128,1775364634146,-150.0,0.00014514,2]
[419765129,1775364634154,-473.989911,0.00014515,2]
[419765130,1775364634164,-150.0,0.00014523,2]
[419765131,1775364634174,-365.4427012,0.00014528,2]
[419765132,1775364634183,-150.0,0.00014539,2]
[419765133,1775364634193,-1178.62948557,0.00014556,2]
[419765134,1775364634202,-500.0,0.00014556,2]
[419765135,1775364634212,-500.0,0.00014556,2]
[419765136,1775364634221,-500.0,0.00014556,2]
[419765137,1775364634230,-500.0,0.00014556,2]
[419765138,1775364634239,-500.0,0.00014556,2]
[419765139,1775364634251,-500.0,0.00014556,2]
[419765140,1775364634260,-500.0,0.00014556,2]
[419765141,1775364634271,-500.0,0.00014556,2]
[419765142,1775364634280,-500.0,0.00014556,2]
[419765143,1775364634290,-500.0,0.00014556,2]
[419765144,1775364634299,-500.0,0.00014556,2]
[419765145,1775364634308,-500.0,0.00014556,2]
[419765146,1775364634318,-168.82696311,0.00014556,2]
[419765147,1775364634327,-500.0,0.00014573,2]
[419765148,1775364634337,-500.0,0.00014573,2]
[419765149,1775364634347,-500.0,0.00014573,2]
[419765150,1775364634356,-500.0,0.00014573,2]
[419765151,1775364634366,-500.0,0.00014573,2]
[419765152,1775364634376,-500.0,0.00014573,2]
[419765153,1775364634386,-500.0,0.00014573,2]
[419765154,1775364634396,-500.0,0.00014573,2]
[419765155,1775364634405,-1034.54,0.00014574,2]
[419765156,1775364634415,-3594.0359696,0.00014575,2]
[419765157,1775364634425,-150.0,0.00014578,2]
[419765158,1775364634434,-150.0,0.00014585,2]
[419765159,1775364634444,-22126.88,0.00014587,2]
[419765160,1775364634454,-160.0,0.00014597,2]
[419765161,1775364634464,-696.349615,0.00014597,2]
[419765162,1775364634474,-1232.699231,0.00014597,2]
[419765163,1775364634484,-500.0,0.00014598,2]
[419765164,1775364634494,-3918.0,0.00014599,2]
[419765165,1775364634504,-3918.0,0.00014599,2]
[419765166,1775364634514,-3918.0,0.00014599,2]
[419765167,1775364634523,-3918.0,0.00014599,2]
[419765168,1775364634533,-3918.0,0.00014599,2]
[419765169,1775364634544,-3918.0,0.00014599,2]
[419765170,1775364634554,-3918.0,0.00014599,2]
[419765171,1775364634563,-3785.21011891,0.00014599,2]
[419765172,1775364634583,-132.78988109,0.00014599,2]
[419765173,1775364634592,-3918.0,0.00014599,2]
[419765174,1775364634602,-3918.0,0.00014599,2]
[419765175,1775364634611,-3918.0,0.00014599,2]
[419765176,1775364634621,-3918.0,0.00014599,2]
[419765177,1775364634632,-3918.0,0.00014599,2]
[419765178,1775364634642,-3918.0,0.00014599,2]
[419765179,1775364634651,-3918.0,0.00014599,2]
[419765180,1775364634660,-3918.0,0.00014599,2]
[419765181,1775364634670,-3918.0,0.00014599,2]
[419765182,1775364634679,-3918.0,0.00014599,2]
[419765183,1775364634688,-3918.0,0.00014599,2]
[419765184,1775364634698,-3918.0,0.00014599,2]
[419765185,1775364634707,-3918.0,0.00014599,2]
[419765186,1775364634717,-3918.0,0.00014599,2]
[419765187,1775364634726,-3918.0,0.00014599,2]
[419765188,1775364634735,-3921.0,0.00014599,2]
[419765189,1775364634745,-353.92825698,0.00014599,2]
[419765190,1775364634754,-22126.88,0.00014599,2]
[419765191,1775364634763,-150.0,0.000146,2]
[419765192,1775364634772,-150.0,0.000146,2]
[419765193,1775364634782,-150.0,0.000146,2]
[419765194,1775364634791,-200.0,0.000146,5]
[419765195,1775364634801,-218.48382407,0.00014604,2]
[419765196,1775364634811,-169.418084,0.00014606,2]
[419765197,1775364634820,-225.4117,0.00014608,7]
[419765198,1775364634830,-500.0,0.00014608,2]
[419765199,1775364634839,-500.0,0.00014608,2]
[419765200,1775364634850,-500.0,0.00014608,2]
[419765201,1775364634861,-197.7,0.00014608,2]
[419765202,1775364634870,-500.0,0.00014608,2]
[419765203,1775364634880,-500.0,0.00014608,2]
[419765204,1775364634891,-500.0,0.00014608,2]
[419765205,1775364634901,-500.0,0.00014608,2]
[419765206,1775364634910,-500.0,0.00014608,2]
[419765207,1775364634920,-500.0,0.00014608,2]
[419765208,1775364634930,-500.0,0.00014608,2]
[419765209,1775364634940,-500.0,0.00014608,2]
[419765210,1775364634950,-500.0,0.00014608,2]
[419765211,1775364634959,-500.0,0.00014608,2]
[419765212,1775364634968,-500.0,0.00014608,2]
[419765213,1775364634978,-500.0,0.00014608,2]
[419765214,1775364634988,-500.0,0.00014608,2]
[419765215,1775364634997,-500.0,0.00014608,2]
[419765216,1775364635007,-500.0,0.00014608,2]
[419765217,1775364635016,-500.0,0.00014608,2]
[419765218,1775364635025,-500.0,0.00014608,2]
[419765219,1775364635034,-500.0,0.00014608,2]
[419765220,1775364635044,-500.0,0.00014608,2]
[419765221,1775364635053,-500.0,0.00014608,2]
[419765222,1775364635063,-500.0,0.00014608,2]
[419765223,1775364635072,-601.31,0.00014608,2]
[419765224,1775364635081,-601.31,0.00014608,2]
[419765225,1775364635091,-86.58218238,0.00014608,2]
[419765226,1775364635103,-514.72781762,0.00014608,2]
[419765227,1775364635113,-601.31,0.00014608,2]
[419765228,1775364635122,-138.38026915,0.00014608,2]
[419765233,1775364638441,-462.92973085,0.00014608,2]
[419765234,1775364638451,-303.91118594,0.00014608,2]
[419765235,1775364638462,-297.39881406,0.00014608,2]
[419765236,1775364638472,-62.01155024,0.00014608,2]
[419765237,1775364638680,-402.05999995,0.00014608,2]
[419765238,1775364638692,-427.32739662,0.00014608,2]
[419765240,1775364640696,-182.82419012,0.00014508,2]
[419765241,1775364640706,-291.10916821,0.00014508,2]
[419765242,1775364640911,-229.44555031,0.00014508,2]
[419765243,1775364640920,-520.55471852,0.00014508,2]
[419765244,1775364640930,-520.55471852,0.00014508,2]
[419765245,1775364640939,-520.55471852,0.00014508,2]
[419765246,1775364640948,-520.55471852,0.00014508,2]
[419765247,1775364640958,-520.55471852,0.00014508,2]
[419765248,1775364640967,-520.55471852,0.00014508,2]
[419765249,1775364640976,-520.55471852,0.00014508,2]
[419765250,1775364640986,-520.55471852,0.00014508,2]
[419765251,1775364640996,-520.55471852,0.00014508,2]
[419765252,1775364641005,-520.55471852,0.00014508,2]
[419765253,1775364641015,-520.55471852,0.00014508,2]
[419765254,1775364641024,-520.55471852,0.00014508,2]
[419765255,1775364641034,-520.55471852,0.00014508,2]
[419765256,1775364641043,-520.55471852,0.00014508,2]
[419765257,1775364641052,-520.55471852,0.00014508,2]
[419765258,1775364641062,-520.55471852,0.00014508,2]
[419765259,1775364641071,-520.55471852,0.00014508,2]
[419765260,1775364641080,-520.55471852,0.00014508,2]
[419765261,1775364641089,-520.55471852,0.00014508,2]
[419765262,1775364641100,-520.55471852,0.00014508,2]
[419765263,1775364641110,-520.55471852,0.00014508,2]
[419765264,1775364641120,-520.55471852,0.00014508,2]
[419765265,1775364641129,-520.55471852,0.00014508,2]
[419765266,1775364641138,-520.55471852,0.00014508,2]
[419765267,1775364641148,-520.55471852,0.00014508,2]
[419765268,1775364641157,-520.55471852,0.00014508,2]
[419765269,1775364641167,-520.55471852,0.00014508,2]
[419765270,1775364641176,-520.55471852,0.00014508,2]
[419765271,1775364641186,-520.55471852,0.00014508,2]
[419765272,1775364641195,-125.23105319,0.00014608,2]
[419765273,1775364641204,-1016.63,0.00014608,2]
[419765274,1775364641214,-1016.63,0.00014608,2]
[419765275,1775364641223,-1016.63,0.00014608,2]
[419765276,1775364641233,-500.0,0.00014608,2]
[419765277,1775364641243,-1016.63,0.00014608,2]
[419765278,1775364641252,-500.0,0.00014608,2]
[419765279,1775364641262,-1016.63,0.00014608,2]
[419765280,1775364641271,-500.0,0.00014608,2]
[419765281,1775364641281,-500.0,0.00014608,2]
[419765282,1775364641290,-1016.63,0.00014608,2]
[419765283,1775364641300,-370.56974227,0.00014608,2]
[419765284,1775364641308,-500.0,0.00014608,2]
[419765285,1775364641318,-500.0,0.00014608,2]
[419765286,1775364641327,-500.0,0.00014608,2]
[419765287,1775364641336,-500.0,0.00014608,2]
[419765288,1775364641345,-500.0,0.00014608,2]
[419765289,1775364641355,-500.0,0.00014608,2]
[419765290,1775364641364,-500.0,0.00014608,2]
[419765291,1775364641375,-500.0,0.00014608,2]
[419765292,1775364641385,-500.0,0.00014608,2]
[419765293,1775364641394,-500.0,0.00014608,2]
[419765294,1775364641404,-500.0,0.00014608,2]
[419765295,1775364641413,-500.0,0.00014608,2]
[419765296,1775364641422,-500.0,0.00014608,2]
[419765297,1775364641431,-500.0,0.00014608,2]
[419765298,1775364641440,-500.0,0.00014608,2]
[419765299,1775364641450,-500.0,0.00014608,2]
[419765300,1775364641459,-520.65331997,0.00014608,2]
[419765301,1775364641468,-500.0,0.00014608,2]
[419765302,1775364641478,-500.0,0.00014608,2]
[419765303,1775364641487,-500.0,0.00014608,2]
[419765304,1775364641496,-500.0,0.00014608,2]
[419765305,1775364641506,-500.0,0.00014608,2]
[419765306,1775364641515,-500.0,0.00014608,2]
[419765307,1775364641524,-500.0,0.00014608,2]
[419765308,1775364641533,-500.0,0.00014608,2]
[419765309,1775364641542,-500.0,0.00014608,2]
[419765310,1775364641552,-500.0,0.00014608,2]
[419765311,1775364641561,-500.0,0.00014608,2]
[419765312,1775364641570,-500.0,0.00014608,2]
[419765313,1775364641579,-500.0,0.00014608,2]
[419765314,1775364641588,-500.0,0.00014608,2]
[419765316,1775364641597,-500.0,0.00014608,2]
[419765317,1775364641607,-374.49001707,0.00014608,2]
[419765318,1775364641616,-500.0,0.00014608,2]
[419765319,1775364641626,-500.0,0.00014608,2]
[419765320,1775364641635,-516.83845845,0.00014608,2]
[419765321,1775364641644,-500.0,0.00014608,2]
[419765322,1775364641654,-500.0,0.00014608,2]
[419765323,1775364641663,-233.60071767,0.00014608,2]
[419765324,1775364641672,-500.0,0.00014608,2]
[419765325,1775364641681,-500.0,0.00014608,2]
[419765326,1775364641691,-229.58322543,0.00014608,2]
[419765327,1775364641699,-500.0,0.00014608,2]
[419765328,1775364641709,-202.36085934,0.00014608,2]
[419765329,1775364641719,-150.0,0.00014609,2]
[419765330,1775364641728,-702499.67191243,0.00014609,2]
[419765333,1775364643109,-520.55471852,0.00014508,2]
[419765334,1775364643119,-520.55471852,0.00014508,2]
[419765335,1775364643129,-520.55471852,0.00014508,2]
[419765336,1775364643138,-72.62020673,0.00014508,2]
[419765338,1775364643583,-159.84656755,0.00013699,2]
[419765339,1775364643593,-533.6527,0.00014409,2]
[419765340,1775364643603,-447.93451179,0.00014508,2]
[419765341,1775364643613,-240.64854131,0.00014508,2]
[419765342,1775364643638,-279.90617721,0.00014508,2]
[419765343,1775364643648,-198.61037964,0.00014508,2]
[419765344,1775364643852,-321.94433888,0.00014508,2]
[419765345,1775364643862,-520.55471852,0.00014508,2]
[419765346,1775364643872,-520.55471852,0.00014508,2]
[419765347,1775364643882,-520.55471852,0.00014508,2]
[419765348,1775364643892,-122.3818488,0.00014508,2]
[419765349,1775364643903,-398.17286972,0.00014508,2]
[419765350,1775364643912,-520.55471852,0.00014508,2]
[419765351,1775364643922,-520.55471852,0.00014508,2]
[419765352,1775364643932,-520.55471852,0.00014508,2]
[419765353,1775364643942,-520.55471852,0.00014508,2]
[419765354,1775364643952,-520.55471852,0.00014508,2]
[419765355,1775364643962,-520.55471852,0.00014508,2]
[419765356,1775364643972,-520.55471852,0.00014508,2]
[419765357,1775364643982,-520.55471852,0.00014508,2]
[419765358,1775364643991,-520.55471852,0.00014508,2]
[419765359,1775364644001,-520.55471852,0.00014508,2]
[419765360,1775364644011,-99.4425878,0.00014508,2]
[419765361,1775364644022,-421.11213072,0.00014508,2]
[419765362,1775364644032,-520.55471852,0.00014508,2]
[419765363,1775364644041,-290.31377681,0.00014528,2]
[419765368,1775364646429,-7535.72290876,0.00014528,2]
[419765369,1775364646536,-486.42303568,0.00014528,2]
[419765370,1775364646546,-500.0,0.00014598,2]
[419765371,1775364646555,-10633.79825757,0.00014609,2]
[419765372,1775364646590,-1205.16272771,0.00014609,2]
[419765426,1775364999971,184.64,6.528e-05,2]
[419765452,1775365539365,-184.64,9.792e-05,2]
[419765463,1775365832174,-600.0,0.00011,2]
[419765464,1775365832184,-455.70104857,0.00012324,2]
[419765465,1775365832300,-531.73649619,0.00012324,2]
[419765466,1775365832313,-512.56245524,0.00012324,2]
[419765467,1775365832323,-200.0,0.000125,4]
[419765468,1775365832333,-309.90283068,0.000125,2]
[419765469,1775365832343,-400.0,0.000126,4]
[419765470,1775365832353,-219.09,0.00012628,2]
[419765471,1775365832363,-1100.0,0.000127,4]
[419765472,1775365832373,-600.0,0.000127,4]
[419765473,1775365832384,-1200.0,0.0001277,2]
[419765474,1775365832394,-300.0,0.0001277,2]
[419765475,1775365832404,-300.0,0.0001277,2]
[419765476,1775365832413,-808.30680505,0.00012771,2]
[419765477,1775365832425,-5265.47504587,0.00012771,2]
[419765478,1775365832434,-19104.82576224,0.00012771,2]
[419765479,1775365832444,-2875.22877568,0.00012771,2]
[419765480,1775365832454,-243.62846746,0.00012771,2]
[419765481,1775365832465,-2300.0,0.000128,4]
[419765482,1775365832474,-800.0,0.000128,4]
[419765483,1775365832485,-368.9169981,0.00012846,2]
[419765484,1775365832494,-150.0,0.00012854,2]
[419765485,1775365832503,-500.0,0.00012855,2]
[419765486,1775365832512,-242.76841207,0.00012855,2]
[419765487,1775365832528,-24.32431955,0.00012855,2]
[419765488,1775365832537,-500.0,0.00012855,2]
[419765489,1775365832547,-500.0,0.00012855,2]
[419765490,1775365832556,-500.0,0.00012855,2]
[419765491,1775365832565,-179.42223805,0.00012855,2]
[419765493,1775365837721,-166.67,0.00012591,2]
[419765494,1775365837731,-1494.0,0.00012842,2]
[419765495,1775365837741,-320.57776195,0.00012855,2]
[419765496,1775365837750,-183.31693883,0.00012855,2]
[419765497,1775365837760,-513.25968536,0.00012855,2]
[419765498,1775365837768,-500.0,0.00012855,2]
[419765499,1775365837778,-500.0,0.00012855,2]
[419765500,1775365837788,-500.0,0.00012855,2]
[419765501,1775365837798,-260.30804841,0.00012855,2]
[419765502,1775365837807,-500.0,0.00012855,2]
[419765503,1775365837818,-500.0,0.00012855,2]
[419765504,1775365837827,-500.0,0.00012855,2]
[419765505,1775365837838,-500.0,0.00012855,2]
[419765506,1775365837847,-500.0,0.00012855,2]
[419765507,1775365837858,-500.16972536,0.00012855,2]
[419765508,1775365837867,-501.0223412,0.00012855,2]
[419765509,1775365837876,-500.0,0.00012855,2]
[419765510,1775365837887,-500.0,0.00012855,2]
[419765511,1775365837897,-500.0,0.00012855,2]
[419765512,1775365837907,-166.12572575,0.00012855,2]
[419765513,1775365837916,-500.0,0.00012855,2]
[419765514,1775365837926,-500.0,0.00012855,2]
[419765515,1775365837934,-500.0,0.00012855,2]
[419765516,1775365837943,-260.293386,0.00012855,2]
[419765517,1775365837953,-164.2374577,0.00012855,2]
[419765518,1775365837962,-500.0,0.00012855,2]
[419765519,1775365837972,-500.0,0.00012855,2]
[419765520,1775365837982,-500.0,0.00012855,2]
[419765521,1775365837991,-500.0,0.00012855,2]
[419765522,1775365838002,-500.0,0.00012855,2]
[419765523,1775365838011,-337.96384001,0.00012855,2]
[419765524,1775365838021,-500.0,0.00012855,2]
[419765525,1775365838031,-500.0,0.00012855,2]
[419765526,1775365838041,-500.0,0.00012855,2]
[419765527,1775365838051,-500.0,0.00012855,2]
[419765528,1775365838060,-500.0,0.00012855,2]
[419765529,1775365838070,-500.0,0.00012855,2]
[419765530,1775365838079,-500.0,0.00012855,2]
[419765532,1775365838089,-500.0,0.00012855,2]
[419765533,1775365838099,-500.0,0.00012855,2]
[419765535,1775365838108,-500.0,0.00012855,2]
[419765537,1775365838117,-500.0,0.00012855,2]
[419765539,1775365838127,-500.0,0.00012855,2]
[419765541,1775365838137,-500.0,0.00012855,2]
[419765543,1775365838147,-500.0,0.00012855,2]
[419765545,1775365838156,-500.0,0.00012855,2]
[419765548,1775365838166,-500.0,0.00012855,2]
[419765550,1775365838176,-500.0,0.00012855,2]
[419765552,1775365838185,-500.0,0.00012855,2]
[419765554,1775365838195,-500.0,0.00012855,2]
[419765555,1775365838204,-500.0,0.00012855,2]
[419765557,1775365838213,-500.0,0.00012855,2]
[419765559,1775365838223,-500.0,0.00012855,2]
[419765562,1775365838233,-500.0,0.00012855,2]
[419765564,1775365838242,-500.0,0.00012855,2]
[419765566,1775365838252,-500.0,0.00012855,2]
[419765568,1775365838261,-500.0,0.00012855,2]
[419765570,1775365838270,-500.0,0.00012855,2]
[419765571,1775365838279,-500.0,0.00012855,2]
[419765574,1775365838289,-500.0,0.00012855,2]
[419765576,1775365838298,-500.0,0.00012855,2]
[419765577,1775365838308,-500.0,0.00012855,2]
[419765580,1775365838317,-500.0,0.00012855,2]
[419765582,1775365838326,-500.0,0.00012855,2]
[419765584,1775365838336,-500.0,0.00012855,2]
[419765586,1775365838345,-500.0,0.00012855,2]
[419765588,1775365838355,-500.0,0.00012855,2]
[419765590,1775365838364,-500.0,0.00012855,2]
[419765592,1775365838374,-500.0,0.00012855,2]
[419765594,1775365838383,-500.0,0.00012855,2]
[419765596,1775365838392,-500.0,0.00012855,2]
[419765598,1775365838402,-500.0,0.00012855,2]
[419765600,1775365838411,-500.0,0.00012855,2]
[419765601,1775365838420,-500.0,0.00012855,2]
[419765603,1775365838430,-500.0,0.00012855,2]
[419765605,1775365838439,-500.0,0.00012855,2]
[419765607,1775365838449,-500.0,0.00012855,2]
[419765609,1775365838458,-500.0,0.00012855,2]
[419765611,1775365838468,-500.0,0.00012855,2]
[419765614,1775365838478,-500.0,0.00012855,2]
[419765615,1775365838487,-500.0,0.00012855,2]
[419765617,1775365838496,-500.0,0.00012855,2]
[419765619,1775365838506,-500.0,0.00012855,2]
[419765621,1775365838515,-500.0,0.00012855,2]
[419765623,1775365838524,-500.0,0.00012855,2]
[419765625,1775365838534,-500.0,0.00012855,2]
[419765627,1775365838543,-500.0,0.00012855,2]
[419765629,1775365838553,-500.0,0.00012855,2]
[419765631,1775365838562,-500.0,0.00012855,2]
[419765633,1775365838571,-500.0,0.00012855,2]
[419765636,1775365838581,-500.0,0.00012855,2]
[419765638,1775365838590,-500.0,0.00012855,2]
[419765640,1775365838599,-500.0,0.00012855,2]
[419765642,1775365838608,-500.0,0.00012855,2]
[419765644,1775365838617,-500.0,0.00012855,2]
[419765646,1775365838627,-500.0,0.00012855,2]
[419765648,1775365838636,-500.0,0.00012855,2]
[419765650,1775365838646,-500.0,0.00012855,2]
[419765652,1775365838655,-258.66273977,0.00012855,2]
[419765654,1775365838664,-500.0,0.00012855,2]
[419765656,1775365838673,-500.0,0.00012855,2]
[419765657,1775365838683,-500.0,0.00012855,2]
[419765658,1775365838692,-500.0,0.00012855,2]
[419765659,1775365838701,-500.0,0.00012855,2]